bitfinex-derivatives/quotes_ETHF0:USTF0_20260204
["timestamp","ask_amount","ask_price","bid_price","bid_amount"]
[1770182683515,2.50530173,2271.8,2271.3,0.22043]
[1770182683809,2.50530173,2272.0,2271.3,2.65514994]
[1770182685408,1.44834231,2271.9,2271.3,0.22043]
[1770182685605,2.50530173,2271.8,2271.3,0.22043]
[1770182686808,2.50530173,2271.8,2271.3,2.65514994]
[1770182687115,4.29e-06,2272.1,2271.3,2.65514994]
[1770182688108,1.4483466,2272.1,2271.3,2.65514994]
[1770182688314,2.50530173,2272.0,2271.3,2.65514994]
[1770182693820,2.50530173,2272.0,2271.5,2.40681344]
[1770182694019,4.29e-06,2272.1,2271.5,2.40681344]
[1770182696925,4.29e-06,2272.1,2271.6,0.22039]
[1770182697124,4.29e-06,2272.1,2271.5,2.40681344]
[1770182697322,4.29e-06,2272.1,2271.7,2.57867394]
[1770182697521,4.29e-06,2272.1,2271.7,0.22039]
[1770182700324,2.28610499,2272.1,2271.7,0.22039]
[1770182704733,2.28610499,2272.1,2271.7,2.57867394]
[1770182705030,4.29e-06,2272.1,2271.7,2.57867394]
[1770182711940,4.29e-06,2272.1,2271.8,0.22038]
[1770182712240,4.29e-06,2272.1,2271.9,2.57865394]
[1770182712434,41.30520991,2272.6,2271.9,2.57865394]
[1770182713340,41.3095223,2272.6,2271.9,2.57865394]
[1770182713536,0.00431239,2272.6,2272.3,2.35828394]
[1770182713742,39.01910921,2273.3,2272.3,2.36326544]
[1770182714138,1.858,2273.5,2272.6,2.57858394]
[1770182714640,0.00451721,2273.5,2272.6,2.35828394]
[1770182714836,0.00451721,2273.5,2272.8,2.35828394]
[1770182715040,0.00451721,2273.5,2272.9,3.35228394]
[1770182715440,0.00451721,2273.5,2273.0,2.35828394]
[1770182715645,0.00451721,2273.5,2273.0,2.57854394]
[1770182716245,2.2861007,2273.9,2273.2,2.35828394]
[1770182716745,4.1451007,2274.1,2273.2,2.57853394]
[1770182716945,2.2861007,2274.1,2273.2,2.57853394]
[1770182717245,0.0032438,2274.1,2273.5,2.35828394]
[1770182717548,0.0032438,2274.1,2273.5,2.57850394]
[1770182718145,0.0032438,2274.1,2273.7,2.35828394]
[1770182719446,2.2861007,2274.5,2273.7,2.57848394]
[1770182719647,2.2861007,2274.7,2273.7,2.57848394]
[1770182719944,2.2861007,2274.7,2273.9,2.57846394]
[1770182720149,2.2861007,2274.9,2273.9,2.57846394]
[1770182720350,2.2861007,2274.9,2274.1,2.57844394]
[1770182720552,2.29153146,2274.9,2274.1,2.58168431]
[1770182720752,0.00543076,2274.9,2274.1,2.58168431]
[1770182721251,0.00543076,2274.9,2274.3,2.4543125]
[1770182722642,0.00543076,2274.9,2274.3,2.6744525]
[1770182723448,2.37130989,2274.9,2274.3,0.22014]
[1770182724351,2.37130989,2274.9,2274.3,2.6744525]
[1770182725555,0.00543076,2274.9,2274.3,2.6744525]
[1770182726152,2.37130989,2274.9,2274.3,0.22014]
[1770182728352,2.37130989,2274.9,2274.1,0.00324037]
[1770182728652,2.37130989,2274.9,2274.1,2.45755287]
[1770182731154,2.37130989,2274.9,2274.1,2.67771287]
[1770182731354,0.00543076,2274.9,2274.3,2.4543125]
[1770182731754,2.37130989,2274.9,2273.7,0.2202]
[1770182731953,2.37130989,2274.9,2273.7,2.6745125]
[1770182733158,2.37130989,2274.9,2273.7,2.67914537]
[1770182735260,2.37130989,2274.9,2273.9,2.4543125]
[1770182735559,2.37130989,2274.9,2273.8,2.6745025]
[1770182737554,2.37130989,2274.9,2273.9,0.22017]
[1770182737956,2.37130989,2274.9,2273.9,2.6744825]
[1770182739255,2.37130989,2274.9,2273.9,0.22017]
[1770182740058,2.37130989,2274.9,2273.2,0.34558922]
[1770182740258,2.36587913,2274.7,2273.4,2.4543125]
[1770182740463,2.36587913,2274.7,2273.6,2.4543125]
[1770182741160,2.36587913,2274.7,2273.6,2.45779503]
[1770182741669,2.36587913,2274.7,2273.6,2.67800503]
[1770182744573,2.36587913,2274.7,2273.8,2.4543125]
[1770182745976,2.36587913,2274.7,2273.8,2.6745025]
[1770182746376,2.36587913,2274.7,2273.8,0.22019]
[1770182750077,7.56842702,2274.7,2273.8,0.22019]
[1770182750282,2.36587913,2274.6,2273.8,0.22019]
[1770182757284,2.44004463,2274.5,2273.8,0.22019]
[1770182760189,2.44004463,2274.4,2273.8,0.22019]
[1770182761183,2.44004463,2274.3,2273.8,0.22019]
[1770182768094,2.44004463,2274.3,2273.6,0.00348253]
[1770182768295,2.44004463,2274.2,2273.6,0.00348253]
[1770182768595,41.84207943,2274.2,2273.6,0.00348253]
[1770182768894,2.44004463,2274.1,2273.6,2.51404541]
[1770182769194,2.44004463,2273.8,2273.3,2.62758262]
[1770182769394,2.44004463,2273.8,2273.2,2.51056288]
[1770182769894,2.44004463,2273.8,2273.0,3.92465135]
[1770182769895,1.44606106,2273.7,2273.0,5.1381455]
[1770182770095,3.88610569,2273.7,2273.0,2.51623496]
[1770182770291,2.44004463,2273.7,2273.0,2.51623496]
[1770182771293,39.4020348,2274.1,2273.4,2.51056288]
[1770182771487,41.84207943,2274.1,2273.4,2.51056288]
[1770182772590,39.4020348,2274.1,2273.4,2.51056288]
[1770182772795,41.84207943,2274.5,2273.9,2.51056288]
[1770182775694,21.97847251,2274.7,2274.4,2.51056288]
[1770182775997,0.00543076,2274.9,2274.3,1.44606106]
[1770182775998,0.00543076,2274.9,2274.5,2.51056288]
[1770182776199,0.00543076,2274.9,2274.6,2.51056288]
[1770182776391,0.00543076,2274.9,2274.6,2.51423144]
[1770182776994,2.44547539,2274.9,2274.3,0.22014]
[1770182778101,2.44547539,2274.9,2274.3,0.2239485]
[1770182778702,2.44547539,2274.9,2274.3,0.0038085]
[1770182778703,2.44004463,2274.7,2274.3,0.0038085]
[1770182783604,0.00543076,2274.9,2274.3,2.42744809]
[1770182784004,0.00543076,2274.9,2274.5,2.42363959]
[1770182784507,2.3400173,2275.6,2274.8,2.42363959]
[1770182784808,2.3400173,2276.0,2275.0,2.42363959]
[1770182785008,2.3400173,2276.0,2275.0,2.64370959]
[1770182785404,2.34460049,2276.0,2275.0,2.64370959]
[1770182786504,2.34460049,2276.0,2275.2,2.42363959]
[1770182786705,0.00458319,2276.0,2275.4,2.64366959]
[1770182789912,2.3400173,2276.6,2275.6,2.64364959]
[1770182790312,2.3400173,2276.6,2275.7,2.64363959]
[1770182790615,2.3400173,2276.9,2276.1,2.42363959]
[1770182790912,0.00367293,2276.9,2276.3,2.42363959]
[1770182791114,2.3400173,2277.3,2276.5,2.42363959]
[1770182791714,2.3400173,2277.7,2276.5,2.64356959]
[1770182792107,2.3400173,2277.4,2276.1,0.00427356]
[1770182792510,0.00439126,2277.7,2275.3,2.64366959]
[1770182792511,2.3400173,2277.0,2275.3,2.64366959]
[1770182792714,2.3400173,2276.8,2275.3,2.64366959]
[1770182793613,2.3400173,2276.8,2275.3,2.64797079]
[1770182794113,0.86,2276.9,2275.3,0.2243312]
[1770182794114,2.3400173,2276.6,2275.3,0.2243312]
[1770182794814,2.5599373,2276.6,2275.3,0.0043012]
[1770182795215,2.3400173,2276.2,2274.8,0.22009]
[1770182796317,2.3400173,2276.2,2274.8,2.64809372]
[1770182796815,2.3400173,2276.0,2274.8,2.64809372]
[1770182797013,2.34454238,2276.0,2274.8,2.64809372]
[1770182797409,2.34454238,2276.0,2274.8,0.00436413]
[1770182797609,2.3400173,2275.4,2273.8,2.42363959]
[1770182798516,2.3400173,2275.4,2273.8,2.42822003]
[1770182798716,2.3400173,2275.2,2273.8,2.42822003]
[1770182799917,2.3400173,2275.0,2273.8,0.00458044]
[1770182801414,2.3400173,2274.6,2273.2,1.15280529]
[1770182801914,2.3400173,2274.6,2273.3,2.04439841]
[1770182802214,2.3400173,2274.6,2273.6,2.42363959]
[1770182802519,2.3400173,2274.6,2273.6,2.42921312]
[1770182806821,2.3400173,2274.6,2273.2,2.62758262]
[1770182807025,2.3400173,2274.2,2272.7,2.42363959]
[1770182807226,2.3400173,2274.1,2272.7,2.42363959]
[1770182807922,2.34486994,2274.1,2272.7,2.42782123]
[1770182809821,2.3400173,2273.8,2272.7,0.00418164]
[1770182810027,2.3400173,2273.8,2272.5,0.22031]
[1770182810923,2.3400173,2273.8,2272.5,0.22586081]
[1770182813228,2.4307385,2273.4,2271.9,2.57816029]
[1770182813932,2.4307385,2273.3,2271.9,2.57816029]
[1770182814427,2.6509785,2273.3,2271.9,0.22513417]
[1770182814633,2.6509785,2273.3,2271.9,0.00476417]
[1770182815131,2.6509785,2273.3,2271.9,2.36255446]
[1770182816930,2.6509785,2273.3,2271.9,0.00476417]
[1770182818027,2.4307385,2273.3,2271.9,2.36186869]
[1770182818230,2.4307385,2273.3,2272.2,2.35710452]
[1770182818738,5.33513691,2273.3,2271.9,0.00476417]
[1770182819033,2.47023248,2273.2,2271.9,0.00476417]
[1770182823432,2.47023248,2273.8,2272.6,2.35710452]
[1770182823629,2.47023248,2273.8,2272.7,0.22029]
[1770182824234,2.47023248,2273.8,2272.1,2.57745452]
[1770182824534,2.47023248,2273.8,2272.2,2.57744452]
[1770182824737,2.47023248,2273.8,2272.3,2.57743452]
[1770182826135,2.47508512,2274.1,2272.6,2.35710452]
[1770182830940,2.69041248,2273.9,2272.4,2.35710452]
[1770182831538,2.47508512,2274.1,2273.3,2.57733452]
[1770182831737,0.00485264,2274.1,2273.4,2.57732452]
[1770182833438,2.47508512,2274.1,2273.4,2.57732452]
[1770182835936,0.00485264,2274.1,2273.4,2.57732452]
[1770182836740,4.403,2274.9,2273.5,2.35710452]
[1770182837036,2.47023248,2275.2,2273.5,2.35710452]
[1770182837037,0.00485264,2274.8,2274.2,2.57725452]
[1770182837242,2.47508512,2275.1,2274.2,2.57725452]
[1770182837433,2.47023248,2275.1,2274.2,2.57725452]
[1770182837633,0.00485264,2275.0,2274.2,2.57725452]
[1770182837838,2.47023248,2275.8,2274.6,2.35710452]
[1770182838038,2.47508512,2275.8,2274.6,2.35710452]
[1770182838733,2.48015972,2275.8,2274.6,2.35710452]
[1770182840334,2.48015972,2275.8,2274.4,2.35710452]
[1770182840538,2.48015972,2275.8,2274.4,2.57723452]
[1770182840739,2.48015972,2275.8,2274.5,0.22012]
[1770182840938,2.48015972,2275.8,2274.8,2.37650398]
[1770182841334,2.48015972,2275.8,2274.8,2.59659398]
[1770182842845,2.43336839,2275.6,2274.2,2.38185495]
[1770182843843,2.43336839,2275.4,2274.2,2.60200495]
[1770182846346,0.00485264,2275.3,2274.4,2.37650398]
[1770182846543,2.43822103,2275.6,2274.6,2.37650398]
[1770182858453,0.00485264,2275.5,2274.6,2.37650398]
[1770182861857,0.00485264,2275.5,2274.6,2.59661398]
[1770182862651,2.43336839,2275.6,2274.6,2.59661398]
[1770182862857,0.00485264,2275.4,2274.6,2.59661398]
[1770182863057,0.00485264,2275.4,2274.6,5.20338369]
[1770182863256,0.00485264,2275.4,2274.7,2.37650398]
[1770182865257,0.00485264,2275.4,2274.8,2.37650398]
[1770182866157,0.00485264,2275.4,2274.9,6.71297078]
[1770182866358,2.43822103,2275.4,2274.9,6.71297078]
[1770182867156,2.43822103,2275.4,2274.9,4.98327369]
[1770182870157,2.43822103,2275.4,2274.9,2.60676971]
[1770182870363,2.43336839,2275.4,2274.8,2.60191707]
[1770182871561,2.43336839,2275.4,2274.3,2.35377992]
[1770182871757,2.43336839,2275.4,2274.4,4.29159497]
[1770182871957,2.43336839,2275.4,2274.3,2.35377992]
[1770182872161,2.43336839,2275.4,2274.4,4.29161632]
[1770182872361,2.43336839,2275.4,2274.4,6.64539624]
[1770182872557,2.43336839,2275.4,2274.4,2.35377992]
[1770182872958,2.43336839,2275.4,2274.4,6.60350046]
[1770182873158,2.43336839,2275.4,2274.4,2.35377992]
[1770182873359,1.32786406,2275.2,2274.2,0.00535097]
[1770182873662,1.31147154,2275.0,2274.2,0.00535097]
[1770182874062,1.53154154,2275.0,2273.7,4.24944989]
[1770182874261,1.31147154,2274.9,2273.6,2.35377992]
[1770182875062,1.31147154,2274.9,2273.6,2.35915614]
[1770182875457,1.53155154,2274.9,2273.6,2.35915614]
[1770182875662,1.33505827,2274.6,2273.6,2.35915614]
[1770182877660,1.33505827,2274.6,2273.6,0.00537622]
[1770182877859,1.32334073,2274.4,2273.2,2.48194396]
[1770182878364,1.32334073,2274.3,2272.8,2.48194396]
[1770182878857,1.54349073,2274.3,2272.8,2.48596448]
[1770182882562,1.51209122,2274.1,2272.8,2.48596448]
[1770182882768,1.51685103,2274.1,2272.8,2.48596448]
[1770182883266,1.29193122,2273.8,2272.8,0.00402052]
[1770182883572,1.51214122,2273.6,2271.7,2.48194396]
[1770182884563,1.51214122,2273.6,2271.7,2.48646652]
[1770182885272,1.51214122,2273.6,2271.8,2.48194396]
[1770182885672,1.51214122,2273.6,2271.8,2.70231396]
[1770182889674,1.51214122,2273.6,2272.0,2.48194396]
[1770182890678,1.51214122,2273.6,2272.2,2.48194396]
[1770182890872,1.34459742,2273.9,2272.4,2.48194396]
[1770182891077,0.00475981,2274.1,2272.4,2.48194396]
[1770182891078,1.34935723,2274.1,2272.5,2.48194396]
[1770182891876,1.34935723,2274.1,2272.5,2.70225396]
[1770182892673,0.00475981,2274.1,2272.7,2.48194396]
[1770182892876,1.34318652,2274.1,2272.9,2.48194396]
[1770182894176,0.00475981,2274.1,2272.9,2.48194396]
[1770182895379,1.33644982,2274.1,2272.9,2.48194396]
[1770182895778,1.33206888,2273.4,2272.2,2.48194396]
[1770182895983,5.284,2273.3,2272.2,2.48194396]
[1770182898280,6.67522967,2273.3,2272.2,2.48194396]
[1770182899575,4.402,2273.3,2272.2,2.48194396]
[1770182900383,2.28695037,2273.9,2272.2,2.48194396]
[1770182900680,1.42948125,2273.8,2272.2,2.48194396]
[1770182902176,1.43074148,2274.1,2272.5,2.42924313]
[1770182903478,1.42598167,2273.9,2272.5,2.42924313]
[1770182906380,0.00475981,2274.1,2272.9,2.42924313]
[1770182906580,1.41938976,2274.9,2273.4,2.64946313]
[1770182906978,6.74538976,2275.2,2273.6,2.42924313]
[1770182907184,6.74538976,2275.2,2273.7,2.42924313]
[1770182907684,6.74988731,2275.2,2273.7,2.43245306]
[1770182908586,1.40174466,2274.9,2273.7,2.43245306]
[1770182917790,0.22008,2275.0,2273.7,2.43245306]
[1770182919197,1.82179857,2274.9,2273.7,2.43245306]
[1770182921697,0.22008,2274.9,2273.7,2.43245306]
[1770182933105,1.80613638,2274.9,2273.7,2.43245306]
[1770182936509,8.34500668,2274.9,2273.8,2.41242202]
[1770182936905,1.56841862,2274.8,2273.8,2.41242202]
[1770182939410,6.7589503,2274.9,2273.5,7.64529049]
[1770182939411,1.57018798,2274.2,2273.5,7.64529049]
[1770182939612,1.57018798,2274.2,2273.3,2.41242202]
[1770182940213,39.50273167,2273.9,2273.3,2.41242202]
[1770182940412,39.50273167,2273.8,2273.3,2.41677828]
[1770182941312,39.50273167,2273.9,2273.3,2.41677828]
[1770182944507,39.50273167,2274.0,2273.3,2.41677828]
[1770182949412,39.50273167,2273.9,2273.3,2.41677828]
[1770182949615,41.38673167,2273.9,2273.3,2.41677828]
[1770182950018,39.50273167,2274.3,2273.3,2.41677828]
[1770182950214,39.50273167,2274.2,2273.3,2.41677828]
[1770182950413,41.39073167,2274.3,2273.3,2.41677828]
[1770182952516,39.50273167,2274.1,2273.3,2.41677828]
[1770182957227,1.918,2274.0,2273.3,2.41677828]
[1770182962324,1.78808846,2273.9,2272.7,2.4985988]
[1770182962529,41.07064013,2273.6,2272.7,2.4985988]
[1770182962826,41.45073167,2273.5,2272.7,2.4985988]
[1770182963431,41.4547431,2273.5,2272.7,2.50267373]
[1770182964231,1.95201143,2273.5,2272.7,2.50267373]
[1770182964435,41.4547431,2273.5,2272.7,2.50267373]
[1770182965231,3.59364757,2273.5,2272.7,2.50267373]
[1770182965430,43.09637924,2273.5,2272.7,2.50267373]
[1770182966232,3.59364757,2273.5,2272.7,2.50267373]
[1770182966525,3.59364757,2273.5,2272.7,0.00407493]
[1770182966526,1.64836845,2273.3,2272.7,0.00407493]
[1770182966732,1.64836845,2273.0,2271.9,2.4985988]
[1770182966933,1.968,2272.9,2271.9,2.4985988]
[1770182967730,1.968,2272.9,2271.9,2.50316536]
[1770182967933,3.61221328,2272.9,2271.9,2.50316536]
[1770182968734,1.968,2272.9,2271.9,2.50316536]
[1770182975641,1.968,2272.9,2271.9,2.72353536]
[1770182977744,39.50273167,2273.3,2271.9,2.50316536]
[1770182978041,0.00401143,2273.5,2272.6,2.4985988]
[1770182978440,0.00401143,2273.5,2272.8,2.4985988]
[1770182978641,0.00401143,2273.5,2272.8,2.7188788]
[1770182978837,43.12522296,2274.1,2273.0,2.4985988]
[1770182979243,1.65750272,2274.0,2273.0,2.4985988]
[1770182979634,1.969,2274.1,2273.0,2.4985988]
[1770182979838,3.60241,2274.1,2273.0,2.4985988]
[1770182980034,1.62958159,2274.0,2273.0,2.4985988]
[1770182995353,1.60141685,2273.8,2273.0,2.4985988]
[1770182995557,39.50273167,2273.9,2273.0,2.4985988]
[1770182995762,3.0481811,2274.0,2273.0,2.4985988]
[1770182996459,1.97282841,2274.1,2273.0,2.7188588]
[1770182996962,3.57511558,2274.1,2273.0,2.7188588]
[1770182997659,0.00382841,2274.1,2273.2,2.36984911]
[1770182999366,1.60411983,2274.1,2273.2,2.36984911]
[1770182999566,1.60411983,2274.1,2273.4,2.36984911]
[1770182999761,1.55964434,2274.0,2273.2,2.36984911]
[1770183000266,1.55964434,2273.8,2272.9,2.36984911]
[1770183000566,1.55964434,2273.7,2272.9,2.36984911]
[1770183001467,1.55964434,2273.5,2272.7,2.36984911]
[1770183001668,39.50273167,2273.7,2272.7,2.36984911]
[1770183001867,39.50273167,2273.8,2272.7,2.36984911]
[1770183002168,39.50273167,2273.7,2272.7,2.36984911]
[1770183002368,41.06939936,2273.7,2272.7,2.36984911]
[1770183002570,1.56666769,2273.7,2272.7,2.36984911]
[1770183002868,41.06939936,2273.7,2272.7,2.36984911]
[1770183004071,39.50273167,2273.7,2272.7,2.36984911]
[1770183005275,39.50273167,2273.6,2272.7,2.36984911]
[1770183005674,41.05962849,2273.6,2272.7,2.36984911]
[1770183007375,39.50273167,2273.5,2272.7,2.36984911]
[1770183007575,41.49973167,2273.5,2272.7,2.36984911]
[1770183007771,39.50273167,2273.2,2272.4,2.36645292]
[1770183008174,41.0519726,2273.2,2272.4,2.36645292]
[1770183008477,4.99809785,2273.1,2272.4,2.36645292]
[1770183009277,1.44785692,2272.9,2272.2,2.58679292]
[1770183009577,2.99709785,2272.9,2272.2,2.58679292]
[1770183012282,1.44785692,2273.1,2272.2,2.58679292]
[1770183012477,40.95058859,2273.3,2272.4,2.36645292]
[1770183012882,39.50273167,2273.3,2272.4,2.36645292]
[1770183013978,39.50273167,2273.3,2272.6,2.36645292]
[1770183014185,41.51073167,2273.4,2272.6,2.36645292]
[1770183014686,43.07478825,2273.4,2272.6,2.36645292]
[1770183014886,1.56405658,2273.3,2272.6,2.36645292]
[1770183015388,1.56405658,2273.3,2272.3,2.36645292]
[1770183016486,41.51073167,2273.4,2272.3,2.36645292]
[1770183016686,2.008,2273.4,2272.4,2.36645292]
[1770183016979,2.008,2273.4,2272.4,2.58677292]
[1770183017180,3.57217718,2273.4,2272.4,2.58677292]
[1770183017378,1.56417718,2273.3,2272.4,2.58677292]
[1770183020587,2.008,2273.4,2272.4,2.58677292]
[1770183020988,3.59019197,2273.4,2272.4,2.58677292]
[1770183021686,1.57054174,2273.2,2272.2,3.9473815]
[1770183021886,1.57054174,2272.8,2272.1,2.2887862]
[1770183022085,3.59454174,2272.7,2271.9,2.29335276]
[1770183022487,1.57054174,2272.6,2271.9,2.29335276]
[1770183023190,1.57054174,2272.6,2271.9,0.00456656]
[1770183023391,1.57054174,2272.6,2271.5,2.2887862]
[1770183024294,1.57054174,2272.6,2271.5,2.29269568]
[1770183024695,41.07327341,2272.6,2271.5,0.00390948]
[1770183024892,1.5736532,2272.1,2271.1,2.2887862]
[1770183025093,1.5736532,2271.9,2271.1,2.2887862]
[1770183025894,1.57886903,2271.9,2271.1,2.29179235]
[1770183026195,1.59387812,2271.6,2270.5,2.2887862]
[1770183026395,1.59387812,2271.4,2270.5,2.2887862]
[1770183027396,2.027,2271.5,2270.5,2.2887862]
[1770183027597,1.59387812,2271.4,2269.8,2.62801946]
[1770183027896,1.59387812,2271.4,2269.9,2.2887862]
[1770183028694,1.59387812,2271.4,2269.9,2.5093562]
[1770183030598,3.60052378,2271.5,2270.2,2.2887862]
[1770183032798,2.027,2271.5,2270.2,2.2887862]
[1770183033095,3.59615575,2271.5,2270.2,2.2887862]
[1770183033295,1.56915575,2271.4,2270.2,2.2887862]
[1770183034397,2.027,2271.5,2270.2,2.2887862]
[1770183034597,2.027,2271.5,2270.6,2.2887862]
[1770183034800,3.62643576,2271.5,2270.6,2.2887862]
[1770183035000,1.59943576,2271.4,2270.6,2.2887862]
[1770183035399,2.027,2271.5,2270.6,2.2887862]
[1770183035699,3.62643576,2271.5,2270.6,2.2887862]
[1770183037698,1.58164851,2271.4,2270.6,2.2887862]
[1770183038200,0.00521583,2271.9,2270.9,2.2887862]
[1770183038396,0.00521583,2271.9,2271.1,2.2887862]
[1770183038997,1.45436009,2271.9,2271.1,2.2887862]
[1770183039398,0.00521583,2271.9,2271.3,2.2887862]
[1770183041705,1.63150091,2271.9,2271.0,2.2887862]
[1770183042908,1.63150091,2271.9,2270.3,2.5093162]
[1770183045810,1.64080456,2271.6,2270.3,2.5093162]
[1770183046011,1.64080456,2271.5,2270.3,2.5093162]
[1770183047304,1.64080456,2271.5,2269.9,2.2887862]
[1770183047305,1.64080456,2271.2,2269.9,2.2887862]
[1770183048402,1.64630406,2271.1,2269.9,2.2887862]
[1770183050407,1.63660159,2270.9,2269.9,2.2887862]
[1770183051108,1.63779958,2270.8,2269.7,2.3138138]
[1770183051306,1.63779958,2270.7,2269.7,2.3138138]
[1770183051509,1.63779958,2270.4,2269.2,2.3138138]
[1770183051714,1.65052687,2270.2,2269.2,2.3138138]
[1770183051912,1.65525262,2270.2,2269.2,2.3138138]
[1770183052209,41.15798429,2270.2,2269.2,2.3138138]
[1770183052410,1.65052687,2270.1,2268.8,2.3138138]
[1770183053220,1.65052687,2270.0,2268.8,2.3138138]
[1770183053422,1.65052687,2269.9,2268.8,2.3138138]
[1770183054413,0.00472575,2270.2,2269.4,2.3138138]
[1770183054915,0.861,2270.1,2269.4,2.3138138]
[1770183056114,2.52266861,2270.1,2268.9,2.45312916]
[1770183057216,0.00472575,2270.2,2268.9,2.67378916]
[1770183057419,1.10172575,2270.2,2268.9,2.45312916]
[1770183058519,1.66306953,2270.1,2269.1,2.45312916]
[1770183058818,1.10172575,2270.2,2269.1,2.67376916]
[1770183059008,2.76479528,2270.2,2269.1,2.67376916]
[1770183059610,0.00472575,2270.2,2269.1,2.67376916]
[1770183059814,1.106,2270.1,2269.1,2.67376916]
[1770183060512,0.00472575,2270.2,2269.3,2.45312916]
[1770183060719,0.00472575,2270.2,2269.3,2.67374916]
[1770183061518,4.408,2270.9,2269.7,2.67370916]
[1770183061714,0.994,2270.8,2269.7,2.67370916]
[1770183061922,1.182,2271.0,2269.9,2.45312916]
[1770183062419,1.67079266,2271.4,2269.9,2.67369916]
[1770183062618,5.26703089,2272.1,2270.7,0.22048]
[1770183062921,4.408,2272.0,2271.0,2.67358916]
[1770183063521,1.67080086,2272.4,2271.0,2.67358916]
[1770183063718,5.718,2272.3,2271.0,2.67739247]
[1770183064223,7.36473602,2272.3,2271.0,2.67739247]
[1770183065425,1.64673602,2272.0,2271.0,2.45693247]
[1770183066926,6.456,2271.9,2271.0,2.45693247]
[1770183067224,1.711,2271.9,2271.0,2.45693247]
[1770183067424,1.68488141,2272.3,2271.0,2.45693247]
[1770183067722,5.268,2272.2,2271.0,2.45693247]
[1770183069419,1.71400569,2272.1,2271.0,2.45693247]
[1770183071627,8.11259948,2272.0,2271.0,2.45693247]
[1770183071937,1.69959948,2271.9,2271.0,2.45693247]
[1770183072124,1.69959948,2271.9,2271.0,0.00380331]
[1770183074730,6.98079129,2272.2,2271.0,2.45693247]
[1770183074930,6.21517449,2272.4,2271.0,2.45693247]
[1770183075329,7.92893489,2272.4,2271.0,2.45693247]
[1770183076232,0.00417449,2272.4,2271.0,2.45693247]
[1770183076430,0.00417449,2272.4,2271.2,2.45312916]
[1770183077230,0.00417449,2272.4,2271.4,2.45312916]
[1770183082538,0.00417449,2272.4,2271.5,2.74329547]
[1770183083840,0.00417449,2272.4,2271.7,2.52288547]
[1770183084142,0.00417449,2272.4,2271.7,2.74327547]
[1770183084741,7.0159114,2273.1,2271.9,2.52288547]
[1770183085743,0.00381098,2273.1,2271.9,2.74325547]
[1770183086740,0.00381098,2273.1,2272.0,0.22036]
[1770183087041,0.00381098,2273.1,2272.3,2.52288547]
[1770183087642,0.00381098,2273.1,2272.3,2.74321547]
[1770183092345,0.00381098,2273.1,2272.3,2.52288547]
[1770183092546,1.74524199,2273.1,2272.3,2.52288547]
[1770183093857,0.00381098,2273.1,2272.3,2.52288547]
[1770183100959,0.00381098,2273.1,2272.1,2.52288547]
[1770183100960,1.74774165,2273.1,2272.1,2.52288547]
[1770183101258,6.41481098,2273.1,2272.1,2.52288547]
[1770183102659,8.16487249,2273.1,2272.1,2.52288547]
[1770183103959,0.00381098,2273.1,2272.1,2.52288547]
[1770183106161,5.27084187,2273.1,2272.1,2.52288547]
[1770183109461,7.01509033,2273.1,2272.1,2.52288547]
[1770183111159,5.26703089,2273.0,2272.1,2.52288547]
[1770183119067,5.26703089,2272.9,2272.1,2.52288547]
[1770183119660,7.00856977,2272.8,2272.1,2.52288547]
[1770183122263,5.26703089,2272.8,2272.1,2.52288547]
[1770183122466,0.00381098,2273.1,2272.3,2.47821736]
[1770183122769,0.00381098,2273.1,2272.4,2.47821736]
[1770183125367,0.00381098,2273.1,2272.2,4.17867867]
[1770183125368,1.73295015,2273.1,2272.2,6.65868093]
[1770183125574,1.72913917,2273.0,2272.1,2.47821736]
[1770183127169,1.72510517,2272.9,2272.0,2.63902933]
[1770183127368,6.99213606,2272.6,2271.9,2.47821736]
[1770183127574,8.98813606,2272.6,2271.9,2.47821736]
[1770183128371,5.26703089,2272.5,2271.9,2.47821736]
[1770183128976,5.26703089,2272.5,2271.9,1.43071993]
[1770183129176,7.78275443,2272.5,2271.9,1.43071993]
[1770183130472,2.51572354,2272.4,2271.4,2.63902933]
[1770183130671,2.51572354,2272.4,2271.4,4.01849534]
[1770183130875,2.51572354,2272.4,2271.3,2.85945933]
[1770183131078,9.77875443,2272.6,2271.5,2.47821736]
[1770183131773,2.51572354,2272.5,2271.5,2.47821736]
[1770183132375,7.26303089,2272.6,2271.5,2.47821736]
[1770183132774,5.26703089,2272.7,2271.9,2.47821736]
[1770183132974,7.78656541,2273.1,2271.9,2.69858736]
[1770183133179,7.78275443,2273.0,2271.9,2.69858736]
[1770183134374,2.51572354,2272.8,2271.9,2.69858736]
[1770183136281,5.26703089,2272.9,2271.9,2.69858736]
[1770183137382,7.78275443,2273.0,2271.9,2.69858736]
[1770183140386,5.26703089,2273.0,2272.1,2.47821736]
[1770183140788,5.26703089,2273.0,2272.1,2.69856736]
[1770183141087,7.70288462,2273.1,2272.1,2.69856736]
[1770183142190,2.43204275,2273.0,2272.1,2.69856736]
[1770183142588,5.27084187,2273.1,2272.1,2.69856736]
[1770183143489,0.00381098,2273.1,2272.3,2.46766734]
[1770183144186,2.43585373,2273.1,2272.3,2.46766734]
[1770183145192,2.43585373,2273.1,2272.2,0.22034]
[1770183145486,2.43204275,2272.7,2271.6,2.63902933]
[1770183145691,2.43204275,2272.0,2271.2,2.46766734]
[1770183146490,2.43204275,2272.0,2270.9,2.46766734]
[1770183146491,2.43204275,2271.8,2270.9,2.46766734]
[1770183146690,2.43204275,2271.8,2270.5,3.95833867]
[1770183146691,2.43204275,2271.8,2270.7,2.46766734]
[1770183146891,2.43204275,2271.7,2270.7,2.46766734]
[1770183147091,2.43204275,2271.7,2270.9,2.46766734]
[1770183149590,5.26703089,2272.3,2271.0,2.47147065]
[1770183149791,2.43204275,2272.3,2271.0,2.47147065]
[1770183151497,2.43204275,2272.6,2271.2,2.46766734]
[1770183151797,3.45604275,2272.6,2271.2,2.46766734]
[1770183152691,3.45604275,2272.6,2271.2,2.68810734]
[1770183155396,3.45604275,2272.6,2271.4,2.46766734]
[1770183155996,2.43204275,2272.5,2271.4,2.46766734]
[1770183157599,2.43204275,2272.5,2271.3,0.22042]
[1770183157793,2.43204275,2272.4,2271.3,0.22042]
[1770183158096,2.43204275,2272.4,2271.3,2.68808734]
[1770183162605,2.43204275,2272.4,2271.3,2.46766734]
[1770183162803,2.43204275,2272.4,2271.0,0.00380331]
[1770183163199,2.43204275,2272.4,2271.0,2.47147065]
[1770183163904,11.95110354,2272.5,2271.0,2.47147065]
[1770183163905,2.43204275,2272.1,2271.0,0.00380331]
[1770183164105,2.43204275,2272.0,2271.0,0.00380331]
[1770183164305,1.603,2271.9,2271.0,0.00380331]
[1770183164606,2.43204275,2271.8,2271.0,0.00380331]
[1770183165405,2.43204275,2271.8,2270.2,2.63902933]
[1770183165606,0.13150057,2270.9,2269.7,2.46766734]
[1770183165906,0.12116539,2270.8,2269.7,2.46766734]
[1770183166405,0.12624103,2270.8,2269.7,2.47209018]
[1770183166712,0.12116539,2270.5,2269.7,0.00442284]
[1770183167103,0.12116539,2270.5,2269.7,2.47209018]
[1770183167408,0.12116539,2270.5,2269.7,0.00442284]
[1770183167801,0.00507564,2270.8,2269.8,2.47230073]